[Event "Titled Tuesday Blitz November 07 Late 2023"]
[White "Novik, Maxim"]
[Black "Aung Thant Zin"]
[WhiteFideId "4102924"]
[BlackFideId "13000063"]
[WhiteElo "2499"]
[BlackElo "2021"]
[Result "1/2-1/2"]
[Round "4"]
[TimeControl "180+1"]
[Date "2023.11.07"]
[WhiteClock "0:00:45"]
[BlackClock "0:00:13"]
[Board "92"]

1. e4 {[%clk 0:03:00]}  c5 {[%clk 0:02:59]} 2. Nc3 {[%clk 0:02:59]}  a6 {[%clk 0:02:57]} 3. g3 {[%clk 0:02:58]}  Nc6 {[%clk 0:02:55]} 4. Bg2 {[%clk 0:02:58]}  d6 {[%clk 0:02:53]} 5. Nge2 {[%clk 0:02:58]}  Nf6 {[%clk 0:02:53]} 6. O-O {[%clk 0:02:58]}  g6 {[%clk 0:02:52]} 7. d4 {[%clk 0:02:58]}  cxd4 {[%clk 0:02:51]} 8. Nxd4 {[%clk 0:02:58]}  Bd7 {[%clk 0:02:51]} 9. Nd5 {[%clk 0:02:54]}  Bg7 {[%clk 0:02:47]} 10. Nxc6 {[%clk 0:02:52]}  bxc6 {[%clk 0:02:46]} 11. Nxf6+ {[%clk 0:02:48]}  Bxf6 {[%clk 0:02:46]} 12. c4 {[%clk 0:02:44]}  O-O {[%clk 0:02:44]} 13. Qc2 {[%clk 0:02:44]}  Rb8 {[%clk 0:02:40]} 14. Rb1 {[%clk 0:02:44]}  Qa5 {[%clk 0:02:32]} 15. b3 {[%clk 0:02:44]}  d5 {[%clk 0:02:19]} 16. exd5 {[%clk 0:02:39]}  cxd5 {[%clk 0:02:05]} 17. Bxd5 {[%clk 0:02:39]}  Bf5 {[%clk 0:02:04]} 18. Be4 {[%clk 0:02:37]}  Bxe4 {[%clk 0:02:04]} 19. Qxe4 {[%clk 0:02:37]}  Qxa2 {[%clk 0:02:04]} 20. Bh6 {[%clk 0:02:36]}  Rfd8 {[%clk 0:01:51]} 21. Rfd1 {[%clk 0:02:28]}  Rxd1+ {[%clk 0:01:45]} 22. Rxd1 {[%clk 0:02:27]}  Qxb3 {[%clk 0:01:42]} 23. Rd3 {[%clk 0:02:02]}  Qb4 {[%clk 0:01:18]} 24. Qd5 {[%clk 0:01:44]}  Bg7 {[%clk 0:00:59]} 25. Qd8+ {[%clk 0:01:41]}  Bf8 {[%clk 0:00:52]} 26. Bxf8 {[%clk 0:01:19]}  Rxd8 {[%clk 0:00:46]} 27. Rxd8 {[%clk 0:01:18]}  Qb1+ {[%clk 0:00:46]} 28. Kg2 {[%clk 0:01:18]}  f5 {[%clk 0:00:32]} 29. Bxe7+ {[%clk 0:01:13]}  Kf7 {[%clk 0:00:32]} 30. Bg5 {[%clk 0:01:08]}  Qe4+ {[%clk 0:00:30]} 31. Kg1 {[%clk 0:01:08]}  Qxc4 {[%clk 0:00:30]} 32. Rd7+ {[%clk 0:01:08]}  Ke8 {[%clk 0:00:27]} 33. Re7+ {[%clk 0:01:05]}  Kf8 {[%clk 0:00:26]} 34. Rxh7 {[%clk 0:01:05]}  a5 {[%clk 0:00:26]} 35. Ra7 {[%clk 0:01:00]}  a4 {[%clk 0:00:24]} 36. h4 {[%clk 0:00:58]}  Qb3 {[%clk 0:00:17]} 37. Be7+ {[%clk 0:00:56]}  Ke8 {[%clk 0:00:16]} 38. Bc5 {[%clk 0:00:54]}  Qb1+ {[%clk 0:00:15]} 39. Kh2 {[%clk 0:00:54]}  Qb5 {[%clk 0:00:15]} 40. Be3 {[%clk 0:00:51]}  Qb3 {[%clk 0:00:13]} 41. Bc5 {[%clk 0:00:50]}  Qb5 {[%clk 0:00:13]} 42. Be3 {[%clk 0:00:50]}  Qb3 {[%clk 0:00:13]} 43. Bc5 {[%clk 0:00:45]}  Qb5 {[%clk 0:00:13]} 1/2-1/2


[Site "https://www.chess.com"]

[Event "Titled Tuesday Blitz November 07 Late 2023"]
[White "Arnold, Ken"]
[Black "Mladenovic, Stefan"]
[WhiteFideId "2056836"]
[BlackFideId "942227"]
[WhiteElo "2411"]
[BlackElo "2658"]
[Result "1/2-1/2"]
[Round "4"]
[TimeControl "180+1"]
[Date "2023.11.07"]
[WhiteClock "0:00:10"]
[BlackClock "0:00:02"]
[Board "95"]

1. e4 {[%clk 0:03:00]}  c5 {[%clk 0:02:59]} 2. Nf3 {[%clk 0:02:57]}  d6 {[%clk 0:02:59]} 3. d4 {[%clk 0:02:58]}  cxd4 {[%clk 0:03:00]} 4. Qxd4 {[%clk 0:02:58]}  a6 {[%clk 0:02:59]} 5. c4 {[%clk 0:02:58]}  Nc6 {[%clk 0:02:59]} 6. Qd2 {[%clk 0:02:57]}  Nf6 {[%clk 0:02:58]} 7. Nc3 {[%clk 0:02:57]}  g6 {[%clk 0:02:59]} 8. h3 {[%clk 0:02:55]}  Bg7 {[%clk 0:02:59]} 9. Be2 {[%clk 0:02:53]}  O-O {[%clk 0:03:00]} 10. O-O {[%clk 0:02:53]}  Nd7 {[%clk 0:03:00]} 11. Re1 {[%clk 0:02:50]}  Nc5 {[%clk 0:02:59]} 12. Bf1 {[%clk 0:02:47]}  f5 {[%clk 0:02:58]} 13. exf5 {[%clk 0:02:29]}  Bxf5 {[%clk 0:02:59]} 14. Nd5 {[%clk 0:02:18]}  Bxh3 {[%clk 0:02:44]} 15. Ng5 {[%clk 0:02:16]}  Bd7 {[%clk 0:02:32]} 16. b4 {[%clk 0:02:05]}  Bxa1 {[%clk 0:02:23]} 17. bxc5 {[%clk 0:02:02]}  dxc5 {[%clk 0:02:19]} 18. Bb2 {[%clk 0:01:43]}  Bxb2 {[%clk 0:02:17]} 19. Qxb2 {[%clk 0:01:44]}  e6 {[%clk 0:02:02]} 20. Nxe6 {[%clk 0:01:40]}  Bxe6 {[%clk 0:02:02]} 21. Rxe6 {[%clk 0:01:40]}  Nd4 {[%clk 0:02:02]} 22. Re7 {[%clk 0:01:33]}  b5 {[%clk 0:01:58]} 23. Qc1 {[%clk 0:01:26]}  Nf5 {[%clk 0:01:31]} 24. Re5 {[%clk 0:01:15]}  Qh4 {[%clk 0:01:23]} 25. Qb2 {[%clk 0:00:45]}  Nd4 {[%clk 0:01:18]} 26. cxb5 {[%clk 0:00:38]}  axb5 {[%clk 0:01:14]} 27. Bxb5 {[%clk 0:00:34]}  Rab8 {[%clk 0:00:35]} 28. Ne7+ {[%clk 0:00:33]}  Kh8 {[%clk 0:00:29]} 29. Rxc5 {[%clk 0:00:24]}  Qxe7 {[%clk 0:00:22]} 30. Qxd4+ {[%clk 0:00:24]}  Qf6 {[%clk 0:00:22]} 31. Qxf6+ {[%clk 0:00:24]}  Rxf6 {[%clk 0:00:23]} 32. a4 {[%clk 0:00:24]}  Rf5 {[%clk 0:00:20]} 33. Rc7 {[%clk 0:00:23]}  Rf4 {[%clk 0:00:16]} 34. g3 {[%clk 0:00:23]}  Rb4 {[%clk 0:00:16]} 35. Kg2 {[%clk 0:00:20]}  Rb2 {[%clk 0:00:16]} 36. Rf7 {[%clk 0:00:19]}  Rb4 {[%clk 0:00:10]} 37. f4 {[%clk 0:00:17]}  Kg8 {[%clk 0:00:10]} 38. Rc7 {[%clk 0:00:16]}  Rf8 {[%clk 0:00:08]} 39. Bc4+ {[%clk 0:00:15]}  Kh8 {[%clk 0:00:08]} 40. a5 {[%clk 0:00:15]}  Ra4 {[%clk 0:00:09]} 41. a6 {[%clk 0:00:15]}  Rd8 {[%clk 0:00:04]} 42. a7 {[%clk 0:00:14]}  Rf8 {[%clk 0:00:03]} 43. Bd5 {[%clk 0:00:13]}  h5 {[%clk 0:00:02]} 44. a8=Q {[%clk 0:00:13]}  Raxa8 {[%clk 0:00:03]} 45. Bxa8 {[%clk 0:00:13]}  Rxa8 {[%clk 0:00:04]} 46. Kh3 {[%clk 0:00:14]}  Ra5 {[%clk 0:00:02]} 47. Kh4 {[%clk 0:00:14]}  Rb5 {[%clk 0:00:03]} 48. Rf7 {[%clk 0:00:13]}  Rc5 {[%clk 0:00:02]} 49. Rb7 {[%clk 0:00:13]}  Kg8 {[%clk 0:00:02]} 50. g4 {[%clk 0:00:13]}  hxg4 {[%clk 0:00:01]} 51. Kxg4 {[%clk 0:00:14]}  Kf8 {[%clk 0:00:02]} 52. Ra7 {[%clk 0:00:14]}  Kg8 {[%clk 0:00:02]} 53. Kf3 {[%clk 0:00:14]}  Rb5 {[%clk 0:00:02]} 54. Ke3 {[%clk 0:00:14]}  Rc5 {[%clk 0:00:03]} 55. Ke4 {[%clk 0:00:14]}  Rb5 {[%clk 0:00:03]} 56. Ra6 {[%clk 0:00:14]}  Kg7 {[%clk 0:00:03]} 57. Ra7+ {[%clk 0:00:15]}  Kh6 {[%clk 0:00:04]} 58. Re7 {[%clk 0:00:15]}  Ra5 {[%clk 0:00:04]} 59. Re6 {[%clk 0:00:15]}  Kh5 {[%clk 0:00:03]} 60. Re8 {[%clk 0:00:15]}  Kg4 {[%clk 0:00:03]} 61. Rf8 {[%clk 0:00:14]}  Ra4+ {[%clk 0:00:03]} 62. Ke5 {[%clk 0:00:14]}  Ra5+ {[%clk 0:00:03]} 63. Ke6 {[%clk 0:00:14]}  Ra4 {[%clk 0:00:01]} 64. Ke5 {[%clk 0:00:15]}  Ra6 {[%clk 0:00:01]} 65. Rf7 {[%clk 0:00:12]}  Ra5+ {[%clk 0:00:02]} 66. Kf6 {[%clk 0:00:11]}  Rf5+ {[%clk 0:00:01]} 67. Kxg6 {[%clk 0:00:11]}  Rxf4 {[%clk 0:00:02]} 68. Rxf4+ {[%clk 0:00:10]}  Kxf4 {[%clk 0:00:02]} 1/2-1/2


[Site "https://www.chess.com"]

[Event "Titled Tuesday Blitz November 07 Late 2023"]
[White "Martins, Vinicius Tine"]
[Black "Tokhirjonova, Gulrukhbegim"]
[WhiteFideId "2112884"]
[BlackFideId "14203626"]
[WhiteElo "2404"]
[BlackElo "2644"]
[Result "0-1"]
[Round "4"]
[TimeControl "180+1"]
[Date "2023.11.07"]
[WhiteClock "0:00:20"]
[BlackClock "0:00:20"]
[Board "96"]

1. e4 {[%clk 0:03:00]}  e5 {[%clk 0:02:59]} 2. Nf3 {[%clk 0:03:00]}  Nc6 {[%clk 0:03:00]} 3. Bb5 {[%clk 0:02:59]}  a6 {[%clk 0:03:00]} 4. Ba4 {[%clk 0:02:58]}  Nf6 {[%clk 0:03:00]} 5. O-O {[%clk 0:02:57]}  Be7 {[%clk 0:03:00]} 6. Bxc6 {[%clk 0:02:56]}  dxc6 {[%clk 0:03:00]} 7. d3 {[%clk 0:02:57]}  Bd6 {[%clk 0:03:00]} 8. b3 {[%clk 0:02:56]}  c5 {[%clk 0:03:00]} 9. Bb2 {[%clk 0:02:57]}  Nd7 {[%clk 0:03:00]} 10. Nbd2 {[%clk 0:02:56]}  O-O {[%clk 0:03:00]} 11. Nc4 {[%clk 0:02:55]}  Re8 {[%clk 0:03:01]} 12. Nxd6 {[%clk 0:02:46]}  cxd6 {[%clk 0:03:00]} 13. a4 {[%clk 0:02:42]}  Nf8 {[%clk 0:02:59]} 14. Nd2 {[%clk 0:02:41]}  Ng6 {[%clk 0:02:59]} 15. a5 {[%clk 0:02:40]}  f5 {[%clk 0:02:59]} 16. Qe2 {[%clk 0:02:10]}  Nf4 {[%clk 0:02:53]} 17. Qe3 {[%clk 0:02:07]}  Rf8 {[%clk 0:02:49]} 18. Rfe1 {[%clk 0:01:41]}  Be6 {[%clk 0:02:43]} 19. Nc4 {[%clk 0:01:40]}  Qe7 {[%clk 0:02:34]} 20. Nb6 {[%clk 0:01:38]}  Rad8 {[%clk 0:02:32]} 21. c4 {[%clk 0:01:38]}  Qg5 {[%clk 0:02:28]} 22. Qg3 {[%clk 0:01:36]}  Qxg3 {[%clk 0:02:23]} 23. hxg3 {[%clk 0:01:30]}  Nxd3 {[%clk 0:02:24]} 24. Re2 {[%clk 0:01:30]}  fxe4 {[%clk 0:02:17]} 25. Bc3 {[%clk 0:01:28]}  Bg4 {[%clk 0:02:13]} 26. Rd2 {[%clk 0:01:18]}  Rf7 {[%clk 0:02:05]} 27. Nd5 {[%clk 0:01:16]}  Bf5 {[%clk 0:01:49]} 28. Ne3 {[%clk 0:01:13]}  Bg6 {[%clk 0:01:47]} 29. Rf1 {[%clk 0:01:01]}  Rdf8 {[%clk 0:01:46]} 30. Nd1 {[%clk 0:00:50]}  h5 {[%clk 0:01:41]} 31. Ne3 {[%clk 0:00:49]}  Kh7 {[%clk 0:01:40]} 32. Nd1 {[%clk 0:00:49]}  Bf5 {[%clk 0:01:34]} 33. Ne3 {[%clk 0:00:49]}  Bd7 {[%clk 0:01:30]} 34. Nd1 {[%clk 0:00:48]}  Bc6 {[%clk 0:01:23]} 35. Ne3 {[%clk 0:00:41]}  g5 {[%clk 0:01:23]} 36. Nd1 {[%clk 0:00:40]}  Kg6 {[%clk 0:01:23]} 37. Ne3 {[%clk 0:00:40]}  h4 {[%clk 0:01:23]} 38. g4 {[%clk 0:00:39]}  Nf4 {[%clk 0:01:19]} 39. Rxd6+ {[%clk 0:00:36]}  Rf6 {[%clk 0:01:19]} 40. Bxe5 {[%clk 0:00:35]}  Rxd6 {[%clk 0:01:12]} 41. Bxd6 {[%clk 0:00:36]}  Rh8 {[%clk 0:01:11]} 42. Bxc5 {[%clk 0:00:34]}  h3 {[%clk 0:01:11]} 43. g3 {[%clk 0:00:31]}  Nd3 {[%clk 0:00:51]} 44. Bd4 {[%clk 0:00:26]}  Rd8 {[%clk 0:00:43]} 45. Bc3 {[%clk 0:00:26]}  Rf8 {[%clk 0:00:42]} 46. Bd4 {[%clk 0:00:24]}  Rf7 {[%clk 0:00:33]} 47. Nf5 {[%clk 0:00:23]}  e3 {[%clk 0:00:21]} 48. Nxe3 {[%clk 0:00:20]}  h2+ {[%clk 0:00:19]} 49. Kxh2 {[%clk 0:00:20]}  Rh7+ {[%clk 0:00:19]} 50. Kg1 {[%clk 0:00:20]}  Rh1# {[%clk 0:00:20]} 0-1


[Site "https://www.chess.com"]

[Event "Titled Tuesday Blitz November 07 Late 2023"]
[White "Inepton_Fermion"]
[Black "Janaszak, Dawid"]
[BlackFideId "1119206"]
[WhiteElo "2400"]
[BlackElo "2633"]
[Result "1-0"]
[Round "4"]
[TimeControl "180+1"]
[Date "2023.11.07"]
[WhiteClock "0:00:01"]
[BlackClock "0:00:32"]
[Board "97"]

1. Nf3 {[%clk 0:03:00]}  g6 {[%clk 0:02:57]} 2. e4 {[%clk 0:03:00]}  c5 {[%clk 0:02:57]} 3. d4 {[%clk 0:02:59]}  cxd4 {[%clk 0:02:57]} 4. Nxd4 {[%clk 0:03:00]}  Nc6 {[%clk 0:02:56]} 5. c4 {[%clk 0:03:00]}  e5 {[%clk 0:02:56]} 6. Nb5 {[%clk 0:02:50]}  d6 {[%clk 0:02:56]} 7. Bd3 {[%clk 0:02:12]}  Nf6 {[%clk 0:02:50]} 8. Bg5 {[%clk 0:02:06]}  Bg7 {[%clk 0:02:38]} 9. Be2 {[%clk 0:02:02]}  O-O {[%clk 0:02:36]} 10. N1c3 {[%clk 0:01:37]}  Nd4 {[%clk 0:02:17]} 11. Nxd4 {[%clk 0:01:32]}  exd4 {[%clk 0:02:17]} 12. Qxd4 {[%clk 0:01:32]}  h6 {[%clk 0:02:14]} 13. Bh4 {[%clk 0:01:14]}  g5 {[%clk 0:02:09]} 14. Bg3 {[%clk 0:01:14]}  Re8 {[%clk 0:02:03]} 15. Qd3 {[%clk 0:01:00]}  b5 {[%clk 0:01:33]} 16. cxb5 {[%clk 0:00:53]}  Bb7 {[%clk 0:01:33]} 17. f3 {[%clk 0:00:48]}  d5 {[%clk 0:01:34]} 18. e5 {[%clk 0:00:34]}  Nh5 {[%clk 0:01:26]} 19. O-O {[%clk 0:00:27]}  Nxg3 {[%clk 0:01:24]} 20. hxg3 {[%clk 0:00:28]}  Bxe5 {[%clk 0:01:25]} 21. f4 {[%clk 0:00:23]}  Qb6+ {[%clk 0:00:50]} 22. Kh2 {[%clk 0:00:23]}  Bxc3 {[%clk 0:00:44]} 23. bxc3 {[%clk 0:00:22]}  Re3 {[%clk 0:00:44]} 24. Qd2 {[%clk 0:00:22]}  Rae8 {[%clk 0:00:38]} 25. Bh5 {[%clk 0:00:18]}  Qf6 {[%clk 0:00:33]} 26. fxg5 {[%clk 0:00:15]}  Qxg5 {[%clk 0:00:33]} 27. Bxf7+ {[%clk 0:00:15]}  Kg7 {[%clk 0:00:34]} 28. Bxe8 {[%clk 0:00:08]}  d4 {[%clk 0:00:34]} 29. Qxd4+ {[%clk 0:00:06]}  Re5 {[%clk 0:00:35]} 30. Rf7+ {[%clk 0:00:04]}  Kg8 {[%clk 0:00:35]} 31. Rxb7 {[%clk 0:00:03]}  Qh5+ {[%clk 0:00:36]} 32. Bxh5 {[%clk 0:00:03]}  Rxh5+ {[%clk 0:00:35]} 33. Kg1 {[%clk 0:00:01]}  Rh1+ {[%clk 0:00:32]} 34. Kxh1 {[%clk 0:00:01]} 1-0


[Site "https://www.chess.com"]

[Event "Titled Tuesday Blitz November 07 Late 2023"]
[White "Gerbelli Neto, Eduardo"]
[Black "Volkov, Maksim"]
[WhiteFideId "2103281"]
[BlackFideId "54123070"]
[WhiteElo "2393"]
[BlackElo "2632"]
[Result "0-1"]
[Round "4"]
[TimeControl "180+1"]
[Date "2023.11.07"]
[WhiteClock "0:00:01"]
[BlackClock "0:00:34"]
[Board "98"]

1. e4 {[%clk 0:03:00]}  a6 {[%clk 0:02:57]} 2. c4 {[%clk 0:03:00]}  c5 {[%clk 0:02:56]} 3. Nc3 {[%clk 0:02:59]}  Nc6 {[%clk 0:02:55]} 4. Nf3 {[%clk 0:02:54]}  g6 {[%clk 0:02:54]} 5. d4 {[%clk 0:02:54]}  cxd4 {[%clk 0:02:54]} 6. Nxd4 {[%clk 0:02:55]}  Bg7 {[%clk 0:02:55]} 7. Nxc6 {[%clk 0:02:54]}  bxc6 {[%clk 0:02:55]} 8. Qf3 {[%clk 0:02:39]}  Qa5 {[%clk 0:02:47]} 9. Bd2 {[%clk 0:02:38]}  Rb8 {[%clk 0:02:45]} 10. O-O-O {[%clk 0:02:08]}  Qb4 {[%clk 0:02:20]} 11. b3 {[%clk 0:02:02]}  Qa3+ {[%clk 0:02:19]} 12. Kb1 {[%clk 0:01:49]}  d6 {[%clk 0:02:18]} 13. Bc1 {[%clk 0:01:31]}  Qa5 {[%clk 0:01:56]} 14. Bb2 {[%clk 0:01:31]}  Nf6 {[%clk 0:01:54]} 15. Be2 {[%clk 0:01:27]}  O-O {[%clk 0:01:53]} 16. h3 {[%clk 0:01:17]}  Nd7 {[%clk 0:01:52]} 17. Qd3 {[%clk 0:01:04]}  Nc5 {[%clk 0:01:52]} 18. Qd2 {[%clk 0:01:00]}  f5 {[%clk 0:01:24]} 19. f3 {[%clk 0:00:39]}  Qb4 {[%clk 0:01:09]} 20. g4 {[%clk 0:00:30]}  fxe4 {[%clk 0:01:01]} 21. Nxe4 {[%clk 0:00:19]}  Nxe4 {[%clk 0:01:01]} 22. Qxb4 {[%clk 0:00:18]}  Rxb4 {[%clk 0:01:01]} 23. fxe4 {[%clk 0:00:19]}  Rf2 {[%clk 0:00:53]} 24. Bxg7 {[%clk 0:00:18]}  Kxg7 {[%clk 0:00:50]} 25. Bd3 {[%clk 0:00:18]}  c5 {[%clk 0:00:48]} 26. Rhf1 {[%clk 0:00:17]}  Rh2 {[%clk 0:00:45]} 27. Rf3 {[%clk 0:00:17]}  Be6 {[%clk 0:00:44]} 28. Re1 {[%clk 0:00:16]}  a5 {[%clk 0:00:39]} 29. e5 {[%clk 0:00:13]}  d5 {[%clk 0:00:40]} 30. cxd5 {[%clk 0:00:11]}  Bxd5 {[%clk 0:00:40]} 31. Rfe3 {[%clk 0:00:12]}  c4 {[%clk 0:00:40]} 32. Be4 {[%clk 0:00:10]}  Be6 {[%clk 0:00:35]} 33. Rc1 {[%clk 0:00:05]}  cxb3 {[%clk 0:00:34]} 34. axb3 {[%clk 0:00:01]}  Bxb3 {[%clk 0:00:34]} 0-1


[Site "https://www.chess.com"]

[Event "Titled Tuesday Blitz November 07 Late 2023"]
[White "Wieczorek, Oskar"]
[Black "Bashylina, Luisa"]
[WhiteFideId "1133950"]
[BlackFideId "12983292"]
[WhiteElo "2632"]
[BlackElo "2383"]
[Result "1-0"]
[Round "4"]
[TimeControl "180+1"]
[Date "2023.11.07"]
[WhiteClock "0:01:23"]
[BlackClock "0:00:38"]
[Board "99"]

1. e4 {[%clk 0:02:54]}  c5 {[%clk 0:02:56]} 2. Nf3 {[%clk 0:02:54]}  e6 {[%clk 0:02:57]} 3. d4 {[%clk 0:02:54]}  cxd4 {[%clk 0:02:58]} 4. Nxd4 {[%clk 0:02:55]}  a6 {[%clk 0:02:57]} 5. Nc3 {[%clk 0:02:56]}  Qc7 {[%clk 0:02:57]} 6. g3 {[%clk 0:02:57]}  Nf6 {[%clk 0:02:55]} 7. Bg2 {[%clk 0:02:57]}  Nc6 {[%clk 0:02:54]} 8. O-O {[%clk 0:02:58]}  Be7 {[%clk 0:02:53]} 9. Re1 {[%clk 0:02:58]}  Nxd4 {[%clk 0:02:49]} 10. Qxd4 {[%clk 0:02:58]}  Bc5 {[%clk 0:02:49]} 11. Bf4 {[%clk 0:02:56]}  Bxd4 {[%clk 0:02:43]} 12. Bxc7 {[%clk 0:02:56]}  O-O {[%clk 0:02:30]} 13. Bd6 {[%clk 0:02:39]}  Re8 {[%clk 0:02:28]} 14. e5 {[%clk 0:02:32]}  Ng4 {[%clk 0:02:27]} 15. Re4 {[%clk 0:02:19]}  Bxc3 {[%clk 0:02:11]} 16. bxc3 {[%clk 0:02:20]}  Nh6 {[%clk 0:02:11]} 17. Rb4 {[%clk 0:01:44]}  f6 {[%clk 0:01:33]} 18. a4 {[%clk 0:01:35]}  fxe5 {[%clk 0:01:31]} 19. Bxe5 {[%clk 0:01:34]}  Nf7 {[%clk 0:01:31]} 20. Bc7 {[%clk 0:01:34]}  Ra7 {[%clk 0:01:19]} 21. a5 {[%clk 0:01:32]}  d5 {[%clk 0:01:18]} 22. c4 {[%clk 0:01:28]}  dxc4 {[%clk 0:01:13]} 23. Rxc4 {[%clk 0:01:29]}  Bd7 {[%clk 0:01:13]} 24. Bb6 {[%clk 0:01:28]}  Raa8 {[%clk 0:01:12]} 25. Bxb7 {[%clk 0:01:28]}  Rab8 {[%clk 0:01:12]} 26. Bxa6 {[%clk 0:01:29]}  Ne5 {[%clk 0:01:06]} 27. Rc7 {[%clk 0:01:27]}  Bc6 {[%clk 0:00:59]} 28. f4 {[%clk 0:01:25]}  Nf3+ {[%clk 0:00:53]} 29. Kf2 {[%clk 0:01:25]}  Ba8 {[%clk 0:00:47]} 30. Rd1 {[%clk 0:01:23]}  e5 {[%clk 0:00:38]} 31. Rdd7 {[%clk 0:01:23]} 1-0


[Site "https://www.chess.com"]

[Event "Titled Tuesday Blitz November 07 Late 2023"]
[White "PapaieDudu"]
[Black "TintinUndercover"]
[WhiteElo "2375"]
[BlackElo "2595"]
[Result "1-0"]
[Round "4"]
[TimeControl "180+1"]
[Date "2023.11.07"]
[WhiteClock "0:00:03"]
[BlackClock "0:00:13"]
[Board "100"]

1. e4 {[%clk 0:01:52]}  c5 {[%clk 0:02:59]} 2. Nf3 {[%clk 0:01:50]}  Nc6 {[%clk 0:02:59]} 3. d4 {[%clk 0:01:50]}  cxd4 {[%clk 0:03:00]} 4. c3 {[%clk 0:01:50]}  Nf6 {[%clk 0:03:00]} 5. e5 {[%clk 0:01:50]}  Nd5 {[%clk 0:03:01]} 6. cxd4 {[%clk 0:01:51]}  d6 {[%clk 0:03:01]} 7. exd6 {[%clk 0:01:50]}  e6 {[%clk 0:03:00]} 8. Nc3 {[%clk 0:01:49]}  Qxd6 {[%clk 0:02:55]} 9. Bd3 {[%clk 0:01:48]}  Be7 {[%clk 0:02:43]} 10. h4 {[%clk 0:01:48]}  Nf4 {[%clk 0:02:09]} 11. Bb1 {[%clk 0:00:44]}  Nxg2+ {[%clk 0:02:02]} 12. Kf1 {[%clk 0:00:45]}  Nf4 {[%clk 0:02:03]} 13. Ne5 {[%clk 0:00:29]}  Nxe5 {[%clk 0:01:52]} 14. Bxf4 {[%clk 0:00:28]}  Qa6+ {[%clk 0:01:52]} 15. Kg1 {[%clk 0:00:25]}  Ng6 {[%clk 0:01:53]} 16. Bd3 {[%clk 0:00:23]}  Qb6 {[%clk 0:01:47]} 17. Be3 {[%clk 0:00:15]}  Bd7 {[%clk 0:01:26]} 18. h5 {[%clk 0:00:11]}  Nf8 {[%clk 0:01:23]} 19. d5 {[%clk 0:00:10]}  Qd8 {[%clk 0:01:24]} 20. Rc1 {[%clk 0:00:04]}  a6 {[%clk 0:01:18]} 21. Bf4 {[%clk 0:00:04]}  Bg5 {[%clk 0:01:14]} 22. Qd2 {[%clk 0:00:02]}  Bxf4 {[%clk 0:01:11]} 23. Qxf4 {[%clk 0:00:03]}  Qf6 {[%clk 0:01:11]} 24. Qg3 {[%clk 0:00:02]}  Rc8 {[%clk 0:01:05]} 25. Rc2 {[%clk 0:00:01]}  b5 {[%clk 0:00:57]} 26. Ne4 {[%clk 0:00:02]}  Qd8 {[%clk 0:00:55]} 27. Nd6+ {[%clk 0:00:02]}  Ke7 {[%clk 0:00:55]} 28. Nxc8+ {[%clk 0:00:02]}  Bxc8 {[%clk 0:00:56]} 29. d6+ {[%clk 0:00:01]}  Ke8 {[%clk 0:00:53]} 30. Rc7 {[%clk 0:00:01]}  Bd7 {[%clk 0:00:53]} 31. Be4 {[%clk 0:00:01]}  g6 {[%clk 0:00:48]} 32. Ra7 {[%clk 0:00:01]}  Bc8 {[%clk 0:00:38]} 33. Re7+ {[%clk 0:00:01]}  Qxe7 {[%clk 0:00:38]} 34. dxe7 {[%clk 0:00:02]}  Nd7 {[%clk 0:00:38]} 35. Qd6 {[%clk 0:00:02]}  Rg8 {[%clk 0:00:38]} 36. Bc6 {[%clk 0:00:02]}  gxh5+ {[%clk 0:00:38]} 37. Kf1 {[%clk 0:00:03]}  Rg5 {[%clk 0:00:16]} 38. Rg1 {[%clk 0:00:03]}  Rg6 {[%clk 0:00:14]} 39. Rxg6 {[%clk 0:00:03]}  hxg6 {[%clk 0:00:14]} 40. Kg2 {[%clk 0:00:04]}  g5 {[%clk 0:00:14]} 41. f3 {[%clk 0:00:04]}  g4 {[%clk 0:00:14]} 42. fxg4 {[%clk 0:00:05]}  hxg4 {[%clk 0:00:15]} 43. Kg3 {[%clk 0:00:05]}  f5 {[%clk 0:00:16]} 44. Kf4 {[%clk 0:00:05]}  e5+ {[%clk 0:00:13]} 45. Kxf5 {[%clk 0:00:04]}  g3 {[%clk 0:00:12]} 46. Kg4 {[%clk 0:00:01]}  g2 {[%clk 0:00:11]} 47. Bxg2 {[%clk 0:00:01]}  Nc5+ {[%clk 0:00:11]} 48. Kh4 {[%clk 0:00:02]}  Nb7 {[%clk 0:00:12]} 49. Bc6+ {[%clk 0:00:02]}  Kf7 {[%clk 0:00:12]} 50. e8=Q+ {[%clk 0:00:03]}  Kg7 {[%clk 0:00:13]} 51. Qdg6# {[%clk 0:00:03]} 1-0


[Site "https://www.chess.com"]

[Event "Titled Tuesday Blitz November 07 Late 2023"]
[White "Eggleston, Thomas A"]
[Black "Shapiro, Viktor"]
[WhiteFideId "412139"]
[BlackFideId "4175700"]
[WhiteElo "2374"]
[BlackElo "2580"]
[Result "0-1"]
[Round "4"]
[TimeControl "180+1"]
[Date "2023.11.07"]
[WhiteClock "0:00:00"]
[BlackClock "0:00:52"]
[Board "101"]

1. e4 {[%clk 0:03:00]}  Nf6 {[%clk 0:02:59]} 2. e5 {[%clk 0:02:59]}  Nd5 {[%clk 0:02:59]} 3. c4 {[%clk 0:02:59]}  Nb6 {[%clk 0:02:59]} 4. c5 {[%clk 0:03:00]}  Nd5 {[%clk 0:02:59]} 5. Nc3 {[%clk 0:03:00]}  e6 {[%clk 0:03:00]} 6. Nxd5 {[%clk 0:02:58]}  exd5 {[%clk 0:03:00]} 7. d4 {[%clk 0:02:59]}  b6 {[%clk 0:03:00]} 8. b4 {[%clk 0:02:51]}  a5 {[%clk 0:03:00]} 9. cxb6 {[%clk 0:02:50]}  Bxb4+ {[%clk 0:02:54]} 10. Bd2 {[%clk 0:02:50]}  Bxd2+ {[%clk 0:02:51]} 11. Qxd2 {[%clk 0:02:51]}  cxb6 {[%clk 0:02:51]} 12. f4 {[%clk 0:02:43]}  O-O {[%clk 0:02:50]} 13. Nf3 {[%clk 0:02:42]}  d6 {[%clk 0:02:50]} 14. Bd3 {[%clk 0:02:42]}  Ba6 {[%clk 0:02:36]} 15. O-O {[%clk 0:02:23]}  Bxd3 {[%clk 0:02:34]} 16. Qxd3 {[%clk 0:02:23]}  Nc6 {[%clk 0:02:32]} 17. f5 {[%clk 0:02:16]}  dxe5 {[%clk 0:02:19]} 18. dxe5 {[%clk 0:02:16]}  f6 {[%clk 0:02:19]} 19. e6 {[%clk 0:02:16]}  Qd6 {[%clk 0:02:15]} 20. Rad1 {[%clk 0:02:07]}  Ne7 {[%clk 0:02:14]} 21. Nd4 {[%clk 0:02:04]}  Rac8 {[%clk 0:02:13]} 22. a4 {[%clk 0:01:58]}  Rc4 {[%clk 0:02:13]} 23. Kh1 {[%clk 0:01:37]}  Rfc8 {[%clk 0:02:06]} 24. Nb5 {[%clk 0:01:35]}  Qc5 {[%clk 0:02:06]} 25. Qg3 {[%clk 0:01:29]}  Rc1 {[%clk 0:01:57]} 26. Nd6 {[%clk 0:01:23]}  Rc6 {[%clk 0:01:44]} 27. Ne4 {[%clk 0:00:53]}  Rxd1 {[%clk 0:01:28]} 28. Rxd1 {[%clk 0:00:51]}  Qd4 {[%clk 0:01:15]} 29. Qb8+ {[%clk 0:00:12]}  Nc8 {[%clk 0:01:14]} 30. Nxf6+ {[%clk 0:00:10]}  gxf6 {[%clk 0:01:08]} 31. Rg1 {[%clk 0:00:10]}  Qe5 {[%clk 0:01:00]} 32. Qb7 {[%clk 0:00:07]}  Qc7 {[%clk 0:01:00]} 33. Qa6 {[%clk 0:00:07]}  Rc1 {[%clk 0:00:59]} 34. Qe2 {[%clk 0:00:05]}  Rxg1+ {[%clk 0:00:58]} 35. Kxg1 {[%clk 0:00:05]}  Ne7 {[%clk 0:00:56]} 36. h3 {[%clk 0:00:05]}  Qc1+ {[%clk 0:00:52]} 37. Kh2 {[%clk 0:00:05]}  Qf4+ {[%clk 0:00:52]} 38. g3 {[%clk 0:00:00]}  Qxf5 {[%clk 0:00:52]} 0-1


[Site "https://www.chess.com"]